bitfinex-derivatives/quotes_BTCF0:USTF0_20250108
["timestamp","ask_amount","ask_price","bid_price","bid_amount"]
[1736318553325,0.1,95970.0,95950.0,0.3608]
[1736318553506,0.15650228,95958.0,95950.0,0.3608]
[1736318553904,0.1,95970.0,95950.0,0.3608]
[1736318554103,0.15572114,95957.0,95950.0,0.3608]
[1736318554305,0.1,95970.0,95950.0,0.3608]
[1736318554306,0.15572114,95962.0,95950.0,0.3608]
[1736318554508,0.15572114,95964.0,95950.0,0.3608]
[1736318554709,0.15535251,95956.0,95950.0,0.3608]
[1736318554906,0.13447251,95961.0,95947.0,0.3608]
[1736318555218,0.5,95951.0,95924.0,0.3608]
[1736318555510,0.3608,95949.0,95924.0,0.3608]
[1736318555711,0.5,95945.0,95924.0,0.3608]
[1736318555910,0.3608,95949.0,95924.0,0.3608]
[1736318555911,0.3608,95939.0,95924.0,0.3608]
[1736318556316,0.15590982,95938.0,95925.0,0.052131]
[1736318556510,0.15590982,95938.0,95927.0,0.05213]
[1736318557015,0.15590982,95938.0,95924.0,0.3618]
[1736318557207,0.5,95933.0,95924.0,0.3628]
[1736318557506,0.1877,95932.0,95924.0,0.3628]
[1736318557710,0.34446924,95932.0,95924.0,0.3628]
[1736318558813,0.34446924,95932.0,95927.0,0.001]
[1736318559406,0.34446924,95932.0,95929.0,0.052129]
[1736318559601,0.34446924,95932.0,95927.0,0.001]
[1736318559812,0.34446924,95932.0,95931.0,0.052128]
[1736318560506,0.34446924,95932.0,95929.0,0.001]
[1736318560713,0.32358924,95932.0,95929.0,0.001]
[1736318561514,0.5,95930.0,95927.0,0.001]
[1736318561812,0.3608,95931.0,95914.0,0.24860825]
[1736318561813,0.5,95923.0,95914.0,0.24860825]
[1736318562014,0.5,95921.0,95909.0,0.0025]
[1736318562405,0.65660655,95920.0,95910.0,0.15664656]
[1736318562614,0.15660655,95920.0,95909.0,0.0025]
[1736318562813,0.15617478,95921.0,95911.0,0.052139]
[1736318563013,0.15617478,95919.0,95915.0,0.001]
[1736318563414,0.36136001,95923.0,95915.0,0.001]
[1736318563415,0.15617478,95920.0,95915.0,0.001]
[1736318563720,0.15544529,95918.0,95915.0,0.001]
[1736318563917,0.3608,95923.0,95915.0,0.001]
[1736318564113,0.15544529,95919.0,95915.0,0.001]
[1736318564310,0.15544529,95917.0,95915.0,0.001]
[1736318564613,0.15544529,95920.0,95915.0,0.001]
[1736318564614,0.15553314,95918.0,95915.0,0.001]
[1736318564817,0.15553314,95916.0,95915.0,0.001]
[1736318565120,0.15553314,95919.0,95911.0,0.001]
[1736318565320,0.15553314,95917.0,95911.0,0.001]
[1736318565512,0.15553314,95916.0,95911.0,0.052139]
[1736318565721,0.15704133,95918.0,95911.0,0.052139]
[1736318565918,0.15704133,95918.0,95915.0,0.001]
[1736318566125,0.15704133,95919.0,95918.0,0.052135]
[1736318566329,0.00056001,95933.0,95917.0,0.3608]
[1736318566528,0.15704133,95930.0,95927.0,0.3608]
[1736318566718,0.15613464,95931.0,95918.0,0.052135]
[1736318566920,0.15613464,95935.0,95918.0,0.052135]
[1736318567133,0.15613464,95929.0,95918.0,0.052135]
[1736318567330,0.001,95919.0,95918.0,0.3608]
[1736318567520,0.15613464,95931.0,95915.0,0.052137]
[1736318567724,0.15572992,95928.0,95920.0,0.20878056]
[1736318567934,0.15572992,95930.0,95920.0,0.20878056]
[1736318568135,0.15572992,95933.0,95925.0,0.3608]
[1736318568431,0.15572992,95929.0,95925.0,0.412931]
[1736318568626,0.15572992,95929.0,95926.0,0.05213]
[1736318568826,0.15606142,95932.0,95926.0,0.05213]
[1736318569026,0.15606142,95928.0,95926.0,0.05213]
[1736318569344,0.001,95931.0,95926.0,0.05213]
[1736318569345,0.15706142,95931.0,95926.0,0.05213]
[1736318569530,0.15606142,95930.0,95926.0,0.05213]
[1736318569734,0.15692836,95927.0,95926.0,0.05313]
[1736318569935,0.15606142,95930.0,95926.0,0.05313]
[1736318569936,0.15692836,95935.0,95926.0,0.05313]
[1736318570428,0.15692836,95927.0,95926.0,0.05413]
[1736318570734,0.15664136,95934.0,95926.0,0.05413]
[1736318570939,0.15664136,95927.0,95926.0,0.05413]
[1736318571235,0.15664136,95933.0,95926.0,0.05413]
[1736318571536,0.15664136,95927.0,95926.0,0.002]
[1736318571836,0.15721376,95931.0,95926.0,0.001]
[1736318572133,0.15721376,95927.0,95926.0,0.002]
[1736318572332,0.5,95932.0,95926.0,0.002]
[1736318572637,0.15685184,95927.0,95926.0,0.002]
[1736318572934,0.15685184,95931.0,95926.0,0.001]
[1736318573131,0.15685184,95927.0,95921.0,0.052133]
[1736318573337,0.15685184,95927.0,95926.0,0.001]
[1736318573535,0.15685184,95930.0,95926.0,0.001]
[1736318573834,0.15602081,95927.0,95926.0,0.001]
[1736318574034,0.15602081,95927.0,95915.0,0.3608]
[1736318574035,0.3608,95929.0,95915.0,0.3608]
[1736318574233,0.51682081,95929.0,95915.0,0.60940825]
[1736318574540,0.15602081,95927.0,95915.0,0.60940825]
[1736318574738,0.15720226,95928.0,95915.0,0.60940825]
[1736318575037,0.50056001,95929.0,95926.0,0.001]
[1736318575233,0.15720226,95927.0,95926.0,0.001]
[1736318575627,0.50056001,95929.0,95921.0,0.001]
[1736318575838,0.15713151,95927.0,95921.0,0.001]
[1736318576133,0.15713151,95928.0,95915.0,0.3628]
[1736318576336,0.50056001,95929.0,95915.0,0.3628]
[1736318576534,0.15713151,95926.0,95915.0,0.3618]
[1736318576738,0.15813151,95927.0,95915.0,0.3608]
[1736318576929,0.005,95927.0,95915.0,0.3608]
[1736318577131,0.3608,95923.0,95915.0,0.3608]
[1736318577332,0.5,95921.0,95915.0,0.3608]
[1736318577641,0.1562031,95920.0,95915.0,0.3608]
[1736318577833,0.1562031,95920.0,95910.0,0.05214]
[1736318578136,0.31284966,95920.0,95915.0,0.001]
[1736318578330,0.1898,95919.0,95915.0,0.001]
[1736318578838,0.1569591,95918.0,95909.0,0.0025]
[1736318579033,0.3608,95913.0,95910.0,0.001]
[1736318579232,0.3634,95912.0,95910.0,0.001]
[1736318579439,0.5203591,95912.0,95909.0,0.0025]
[1736318579629,0.15664656,95910.0,95887.0,0.3608]
[1736318579938,0.65664656,95900.0,95887.0,0.3608]
[1736318580153,0.65664656,95900.0,95884.0,0.052154]
[1736318580328,0.5,95891.0,95887.0,0.3608]
[1736318580525,0.65597366,95899.0,95889.0,0.052151]
[1736318580725,0.65647855,95900.0,95889.0,0.052151]
[1736318580924,0.15647855,95890.0,95889.0,0.052151]
[1736318581130,0.15647855,95898.0,95897.0,0.052147]
[1736318581337,0.15647855,95899.0,95897.0,0.412947]
[1736318581545,0.00056001,95917.0,95901.0,0.052144]
[1736318581841,0.15698026,95908.0,95907.0,0.052141]
[1736318582042,0.15698026,95911.0,95897.0,0.3608]
[1736318582245,0.15698026,95908.0,95897.0,0.3608]
[1736318582543,0.15698026,95910.0,95897.0,0.3608]
[1736318582744,0.002,95912.0,95897.0,0.3608]
[1736318582935,0.15604173,95907.0,95900.0,0.15664656]
[1736318583137,0.15604173,95907.0,95897.0,0.3608]
[1736318583438,0.5,95899.0,95897.0,0.3618]
[1736318583847,0.15733963,95898.0,95897.0,0.3618]
[1736318584036,0.15733963,95898.0,95897.0,0.3608]
[1736318584245,0.15733963,95905.0,95897.0,0.3608]
[1736318584437,0.15733963,95898.0,95887.0,0.3608]
[1736318584737,0.5,95896.0,95888.0,0.3608]
[1736318585135,0.5,95894.0,95888.0,0.3608]
[1736318585331,0.5,95894.0,95882.0,0.00156444]
[1736318585647,0.3608,95898.0,95882.0,0.00156444]
[1736318585648,0.5,95890.0,95882.0,0.00156444]
[1736318585840,0.5,95888.0,95882.0,0.00156444]
[1736318586348,0.15583112,95887.0,95882.0,0.00156444]
[1736318586733,0.5,95888.0,95865.0,0.3608]
[1736318586734,1.0173181,95888.0,95865.0,0.3608]
[1736318586939,0.5,95877.0,95865.0,0.3608]
[1736318587139,0.5,95878.0,95861.0,0.3608]
[1736318587339,0.6558781,95876.0,95861.0,0.3608]
[1736318587541,0.5,95868.0,95847.0,0.052734]
[1736318587736,0.3608,95863.0,95847.0,0.00056]
[1736318587935,0.5,95861.0,95847.0,0.00056]
[1736318588135,0.5,95861.0,95842.0,0.3608]
[1736318588336,0.5,95857.0,95842.0,0.3608]
[1736318588543,0.65625953,95860.0,95842.0,0.3608]
[1736318588850,0.15586088,95856.0,95842.0,0.412977]
[1736318589048,0.15586088,95859.0,95852.0,0.00256471]
[1736318589340,0.15586088,95855.0,95852.0,0.00256471]
[1736318589546,0.15586088,95855.0,95852.0,0.00156471]
[1736318589737,0.15586088,95858.0,95854.0,0.3608]
[1736318589943,0.15551952,95859.0,95854.0,0.3608]
[1736318590242,0.15551952,95862.0,95854.0,0.3608]
[1736318590443,0.15551952,95858.0,95854.0,0.3608]
[1736318590642,0.5,95862.0,95852.0,0.00356471]
[1736318590838,0.5,95855.0,95852.0,0.00356471]
[1736318591033,0.5,95856.0,95852.0,0.00356471]
[1736318591233,0.1555306,95854.0,95852.0,0.00356471]
[1736318591645,0.1555306,95856.0,95853.0,0.052171]
[1736318591836,0.1555306,95856.0,95852.0,0.00356471]
[1736318591837,0.3608,95878.0,95854.0,0.05217]
[1736318592149,0.15563231,95861.0,95858.0,0.3608]
[1736318592337,0.5,95868.0,95858.0,0.3608]
[1736318592539,0.15563231,95867.0,95858.0,0.3608]
[1736318592741,0.15563231,95860.0,95859.0,0.052167]
[1736318592950,0.15703005,95869.0,95859.0,0.052167]
[1736318593143,0.15703005,95860.0,95859.0,0.052167]
[1736318593541,0.15703005,95868.0,95858.0,0.3618]
[1736318593742,0.15716516,95860.0,95858.0,0.3618]
[1736318593943,0.13628516,95860.0,95858.0,0.3618]
[1736318594136,0.15716516,95867.0,95859.0,0.001]
[1736318594344,0.15716516,95864.0,95859.0,0.001]
[1736318594652,0.15716516,95870.0,95866.0,0.052163]
[1736318594951,0.15666272,95876.0,95869.0,0.3608]
[1736318595342,0.15666272,95870.0,95869.0,0.3608]
[1736318595547,0.15666272,95870.0,95859.0,0.002]
[1736318595746,0.15666272,95875.0,95858.0,0.3618]
[1736318595945,0.001,95870.0,95858.0,0.3618]
[1736318596250,0.15566339,95869.0,95858.0,0.3618]
[1736318596443,0.002,95870.0,95858.0,0.3618]
[1736318596639,0.65566339,95869.0,95858.0,0.3608]
[1736318596840,0.15566339,95869.0,95858.0,0.3608]
[1736318597441,0.15566339,95869.0,95858.0,0.3618]
[1736318597853,0.15566339,95869.0,95859.0,0.15664656]
[1736318598545,0.1561494,95872.0,95870.0,0.052161]
[1736318599149,0.50056001,95886.0,95871.0,0.3608]
[1736318599358,0.5,95886.0,95871.0,0.3608]
[1736318599544,0.15678977,95878.0,95871.0,0.3608]
[1736318599743,0.5,95882.0,95871.0,0.3608]
[1736318600251,0.15609163,95877.0,95871.0,0.3608]
[1736318600454,0.15609163,95881.0,95871.0,0.3608]
[1736318600650,0.50064,95882.0,95871.0,0.3618]
[1736318600846,0.15620633,95876.0,95872.0,0.05216]
[1736318601048,0.15620633,95880.0,95871.0,0.3618]
[1736318601249,0.50056001,95882.0,95871.0,0.3618]
[1736318601450,0.15620633,95876.0,95871.0,0.3618]
[1736318601865,0.15620633,95880.0,95871.0,0.3618]
[1736318602046,0.50056001,95882.0,95872.0,0.001]
[1736318602244,0.15604973,95875.0,95872.0,0.001]
[1736318602444,0.15604973,95879.0,95872.0,0.001]
[1736318602655,0.15604973,95880.0,95872.0,0.001]
[1736318602952,0.50056001,95882.0,95871.0,0.3618]
[1736318602953,0.15599507,95874.0,95871.0,0.3618]
[1736318603255,0.15599507,95880.0,95872.0,0.001]
[1736318603450,0.15599507,95873.0,95872.0,0.05316]
[1736318603662,0.15599507,95876.0,95872.0,0.05316]
[1736318603846,0.15599507,95876.0,95871.0,0.3618]
[1736318604044,0.15683005,95873.0,95872.0,0.001]
[1736318604253,0.15683005,95875.0,95872.0,0.001]
[1736318604556,0.15683005,95876.0,95872.0,0.001]
[1736318604753,0.15740925,95874.0,95872.0,0.002]
[1736318605147,0.50064,95878.0,95872.0,0.001]
[1736318605148,0.15740925,95877.0,95872.0,0.001]
[1736318605347,0.16040925,95873.0,95872.0,0.001]
[1736318605549,0.003,95873.0,95872.0,0.001]
[1736318605849,0.001,95874.0,95872.0,0.001]
[1736318606057,0.1567054,95873.0,95872.0,0.001]
[1736318606256,0.1567054,95873.0,95871.0,0.05216]
[1736318606452,0.1567054,95873.0,95872.0,0.001]
[1736318607252,0.1358254,95873.0,95872.0,0.001]
[1736318607446,0.4966254,95873.0,95872.0,0.001]
[1736318607653,0.4976254,95873.0,95872.0,0.001]
[1736318607846,0.7976254,95873.0,95852.0,0.00156471]
[1736318608058,0.3608,95858.0,95852.0,0.00156471]
[1736318608248,0.3608,95858.0,95832.0,0.3608]
[1736318608249,0.3742,95857.0,95832.0,0.3608]
[1736318608443,0.3608,95844.0,95832.0,0.37083118]
[1736318608647,0.3608,95844.0,95836.0,0.05218]
[1736318608848,0.15607322,95843.0,95836.0,0.05218]
[1736318609547,0.15607322,95843.0,95832.0,0.37183118]
[1736318609751,0.5,95833.0,95832.0,0.001]
[1736318609949,0.5,95834.0,95832.0,0.001]
[1736318610162,0.15741585,95833.0,95832.0,0.001]
[1736318610559,0.15741585,95835.0,95832.0,0.001]
[1736318610858,0.15706814,95833.0,95832.0,0.001]
[1736318611152,0.65762815,95834.0,95832.0,0.001]
[1736318611356,0.5,95834.0,95832.0,0.001]
[1736318611548,0.15706814,95833.0,95832.0,0.001]
[1736318611750,0.5,95832.0,95810.0,0.37071649]
[1736318612047,0.15664656,95822.0,95800.0,0.1]
[1736318612260,0.3608,95817.0,95800.0,0.1]
[1736318612858,0.15591533,95816.0,95800.0,0.1]
[1736318613047,0.15591533,95816.0,95812.0,0.00256526]
[1736318613444,0.15591533,95816.0,95812.0,0.00356526]
[1736318614647,0.15636816,95819.0,95812.0,0.00356526]
[1736318614847,0.15686358,95815.0,95812.0,0.00356526]
[1736318615268,0.15686358,95818.0,95812.0,0.00356526]
[1736318615446,0.15686358,95814.0,95812.0,0.00356526]
[1736318615851,0.15715286,95817.0,95812.0,0.00356526]
[1736318616360,0.15715286,95813.0,95812.0,0.00356526]
[1736318616661,0.15715286,95816.0,95812.0,0.00356526]
[1736318617061,0.15679592,95813.0,95812.0,0.00356526]
[1736318617259,0.15679592,95815.0,95812.0,0.00356526]
[1736318617758,0.15679592,95813.0,95812.0,0.00356526]
[1736318618064,0.15697496,95814.0,95812.0,0.00356526]
[1736318618265,0.15697496,95813.0,95812.0,0.00356526]
[1736318618560,0.15697496,95819.0,95812.0,0.00356526]
[1736318618866,0.15572138,95817.0,95812.0,0.00356526]
[1736318619367,0.5,95807.0,95800.0,0.1]
[1736318619550,0.15664656,95810.0,95800.0,0.1]
[1736318619755,0.15742539,95806.0,95800.0,0.1]
[1736318620059,0.15742539,95809.0,95800.0,0.1]
[1736318620268,0.15742539,95805.0,95800.0,0.1]
[1736318620450,0.5,95802.0,95800.0,0.1]
[1736318620658,0.5,95803.0,95800.0,0.1]
[1736318620850,0.15679231,95801.0,95800.0,0.1]
[1736318621049,0.15679231,95802.0,95800.0,0.1]
[1736318621357,0.15679231,95801.0,95800.0,0.1]
[1736318621853,0.20899131,95802.0,95800.0,0.101]
[1736318622159,0.15732644,95801.0,95800.0,0.101]
[1736318622365,0.15732644,95803.0,95800.0,0.102]
[1736318622562,0.5,95811.0,95800.0,0.102]
[1736318622764,0.15732644,95801.0,95800.0,0.102]
[1736318623063,0.15643836,95808.0,95801.0,0.052199]
[1736318623267,0.15643836,95819.0,95807.0,0.3608]
[1736318623564,0.15643836,95809.0,95807.0,0.3608]
[1736318623764,0.15643836,95809.0,95800.0,0.102]
[1736318623952,0.052195,95808.0,95800.0,0.102]
[1736318624358,0.20827576,95808.0,95800.0,0.102]
[1736318624659,0.052195,95808.0,95800.0,0.102]
[1736318624864,0.15753785,95807.0,95800.0,0.102]
[1736318625656,0.15753785,95810.0,95800.0,0.101]
[1736318625867,0.15669535,95806.0,95800.0,0.102]
[1736318626057,0.1500662,95806.0,95805.0,0.3608]
[1736318626588,0.15669535,95810.0,95805.0,0.3608]
[1736318626865,0.15669535,95806.0,95805.0,0.3608]
[1736318627064,0.15676525,95809.0,95805.0,0.3608]
[1736318627363,0.5,95823.0,95805.0,0.3608]
[1736318627364,0.15676525,95806.0,95805.0,0.3608]
[1736318627679,0.15676525,95808.0,95805.0,0.3608]
[1736318628068,0.15701473,95806.0,95805.0,0.3608]
[1736318628267,0.50060001,95823.0,95805.0,0.3608]
[1736318628268,0.15701473,95807.0,95805.0,0.3618]
[1736318628567,0.15701473,95806.0,95805.0,0.3618]
[1736318628952,0.13634295,95818.0,95805.0,0.3618]
[1736318629152,0.15722295,95806.0,95805.0,0.3618]
[1736318629360,0.15722295,95806.0,95805.0,0.3628]
[1736318629568,0.15722295,95817.0,95805.0,0.3618]
[1736318629780,0.05219,95818.0,95805.0,0.3618]
[1736318629781,0.15722295,95806.0,95805.0,0.002]
[1736318630264,0.15589158,95810.0,95805.0,0.002]
[1736318630466,0.15589158,95806.0,95805.0,0.002]
[1736318630664,0.15589158,95806.0,95805.0,0.3628]
[1736318630872,0.1561416,95809.0,95805.0,0.3628]
[1736318631059,0.1561416,95806.0,95805.0,0.3628]
[1736318631260,0.1561416,95811.0,95805.0,0.3628]
[1736318631570,0.1561416,95806.0,95805.0,0.002]
[1736318631867,0.15753095,95810.0,95805.0,0.002]
[1736318632064,0.15753095,95806.0,95805.0,0.001]
[1736318632269,0.15753095,95806.0,95805.0,0.002]
[1736318632468,0.15753095,95807.0,95805.0,0.002]
[1736318632766,0.15753095,95806.0,95805.0,0.002]
[1736318632966,0.3608,95813.0,95805.0,0.002]
[1736318633160,0.15569802,95809.0,95805.0,0.002]
[1736318633366,0.15569802,95810.0,95805.0,0.002]
[1736318633756,0.15569802,95808.0,95805.0,0.3628]
[1736318633961,0.15707615,95810.0,95805.0,0.3628]
[1736318634363,0.15707615,95807.0,95805.0,0.3628]
[1736318634558,0.15707615,95809.0,95805.0,0.3628]
[1736318634767,0.15589118,95806.0,95805.0,0.3628]
[1736318635168,0.3608,95813.0,95805.0,0.3628]
[1736318635169,0.15589118,95808.0,95805.0,0.3628]
[1736318635373,0.15589118,95806.0,95805.0,0.3628]
[1736318635765,0.15589118,95807.0,95805.0,0.3628]
[1736318636270,0.15643514,95812.0,95805.0,0.3628]
[1736318636672,0.15643514,95807.0,95805.0,0.3628]
[1736318636967,0.15737558,95812.0,95805.0,0.3628]
[1736318637174,0.15737558,95806.0,95805.0,0.3628]
[1736318637579,0.15737558,95812.0,95805.0,0.3628]
[1736318637776,0.155813,95806.0,95805.0,0.3628]
[1736318638182,0.155813,95812.0,95805.0,0.3628]
[1736318638470,0.155813,95806.0,95805.0,0.3628]
[1736318638671,0.155813,95810.0,95805.0,0.3618]
[1736318638976,0.15593054,95812.0,95808.0,0.052195]
[1736318639168,0.15593054,95809.0,95805.0,0.3628]
[1736318639368,0.13505054,95809.0,95805.0,0.3628]
[1736318639564,0.15593054,95810.0,95805.0,0.3628]
[1736318639768,0.15593054,95813.0,95805.0,0.3628]
[1736318639975,0.15563296,95808.0,95805.0,0.3628]
[1736318640176,0.15563296,95809.0,95805.0,0.3628]
[1736318640371,0.5,95825.0,95805.0,0.3628]
[1736318640372,0.15563296,95812.0,95805.0,0.3628]
[1736318640572,0.00056001,95825.0,95805.0,0.3628]
[1736318640573,0.15563296,95807.0,95805.0,0.3628]
[1736318640775,0.00056001,95815.0,95805.0,0.3618]
[1736318640968,0.15649693,95811.0,95805.0,0.3628]
[1736318641171,0.15649693,95806.0,95805.0,0.3628]
[1736318641478,0.15649693,95810.0,95805.0,0.3628]
[1736318641866,0.15566851,95806.0,95805.0,0.3628]
[1736318642172,0.15566851,95809.0,95805.0,0.3618]
[1736318642369,0.15566851,95806.0,95805.0,0.3628]
[1736318642874,0.15566851,95806.0,95805.0,0.002]
[1736318642875,0.15605159,95806.0,95805.0,0.002]
[1736318643268,0.86136001,95807.0,95805.0,0.002]
[1736318643468,0.65605159,95806.0,95805.0,0.002]
[1736318644276,0.65605159,95806.0,95800.0,0.1]
[1736318644478,0.552198,95803.0,95787.0,0.3608]
[1736318644671,0.3608,95794.0,95779.0,0.01012351]
[1736318644867,0.3608,95785.0,95779.0,0.01012351]
[1736318645072,0.5,95784.0,95779.0,0.01012351]
[1736318645269,0.65604282,95784.0,95779.0,0.01012351]
[1736318645568,0.65604282,95784.0,95768.0,0.3608]
[1736318645569,0.5,95783.0,95768.0,0.3608]
[1736318645766,0.65604282,95784.0,95779.0,0.001]
[1736318645968,0.15610227,95782.0,95779.0,0.001]
[1736318646175,0.15610227,95783.0,95779.0,0.002]
[1736318646371,0.3608,95782.0,95779.0,0.002]
[1736318646569,0.15610227,95781.0,95759.0,0.3608]
[1736318646766,0.3608,95771.0,95759.0,0.3608]
[1736318646970,0.1825,95770.0,95759.0,0.3608]
[1736318647182,0.5,95761.0,95759.0,0.3608]
[1736318647384,0.8400324,95770.0,95759.0,0.3608]
[1736318647576,0.1575324,95760.0,95759.0,0.3608]
[1736318648078,0.65727535,95769.0,95759.0,0.3608]
[1736318648578,0.15727535,95760.0,95759.0,0.3608]
[1736318648788,0.15727535,95768.0,95759.0,0.3618]
[1736318649080,0.15629234,95760.0,95759.0,0.3628]
[1736318649486,0.15629234,95768.0,95759.0,0.3628]
[1736318649981,0.15704846,95760.0,95759.0,0.3628]
[1736318650178,0.15704846,95767.0,95759.0,0.3628]
[1736318650582,0.15704846,95768.0,95759.0,0.3628]
[1736318650882,0.15719783,95766.0,95759.0,0.3628]
[1736318651283,0.15719783,95767.0,95759.0,0.3628]
[1736318651471,0.15719783,95765.0,95759.0,0.3628]
[1736318651883,0.15719783,95766.0,95759.0,0.3628]
[1736318652290,0.15670214,95764.0,95759.0,0.3628]
[1736318652583,0.15670214,95765.0,95759.0,0.3628]
[1736318652786,0.15670214,95763.0,95759.0,0.3628]
[1736318653180,0.50060001,95769.0,95759.0,0.3628]
[1736318653381,0.15660596,95766.0,95759.0,0.3628]
[1736318653682,0.5,95769.0,95759.0,0.3628]
[1736318653683,0.15660596,95762.0,95759.0,0.3628]
[1736318653888,0.50056001,95769.0,95759.0,0.3628]
[1736318654087,0.15702033,95765.0,95759.0,0.3628]
[1736318654273,0.15702033,95761.0,95759.0,0.3628]
[1736318654479,0.50056001,95769.0,95759.0,0.3628]
[1736318654680,0.15702033,95765.0,95759.0,0.3628]
[1736318654881,0.15561362,95760.0,95759.0,0.3618]
[1736318655185,0.5,95761.0,95759.0,0.3628]
[1736318655402,0.15561362,95764.0,95759.0,0.3628]
[1736318655582,0.65561362,95767.0,95759.0,0.3628]
[1736318655777,0.15573373,95763.0,95759.0,0.3628]
[1736318656183,0.15573373,95766.0,95759.0,0.3628]
[1736318656485,0.15573373,95762.0,95759.0,0.3628]
[1736318656788,0.15573373,95765.0,95759.0,0.3628]
[1736318657194,0.1559534,95761.0,95759.0,0.3628]
[1736318657493,0.1559534,95764.0,95759.0,0.3628]
[1736318657686,0.1559534,95760.0,95759.0,0.3628]
[1736318657883,0.1559534,95760.0,95759.0,0.3618]
[1736318658076,0.1559534,95761.0,95759.0,0.3628]
[1736318658281,0.15743556,95760.0,95759.0,0.3628]
[1736318658688,0.15743556,95761.0,95759.0,0.3628]
[1736318658993,0.05,95767.0,95759.0,0.3628]
[1736318659293,0.1564627,95764.0,95759.0,0.3628]
[1736318659490,0.1564627,95764.0,95762.0,0.05222]
[1736318659694,0.05,95767.0,95762.0,0.05222]
[1736318659879,0.15712969,95763.0,95762.0,0.05222]
[1736318660295,0.05,95767.0,95759.0,0.3628]
[1736318660492,0.05,95767.0,95766.0,0.052218]
[1736318660991,0.20712969,95767.0,95766.0,0.052218]
[1736318662084,0.20712969,95767.0,95766.0,0.054218]
[1736318662390,0.18620969,95767.0,95766.0,0.054218]
[1736318663885,0.50064,95791.0,95773.0,0.052214]
[1736318664085,0.50064,95791.0,95766.0,0.002]
[1736318664086,0.50064,95791.0,95774.0,0.3608]
[1736318664292,0.15599185,95781.0,95774.0,0.413013]
[1736318664491,0.15599185,95787.0,95780.0,0.05221]
[1736318664694,0.15599185,95790.0,95782.0,0.3608]
[1736318664888,0.15599185,95795.0,95783.0,0.413008]
[1736318665084,0.15754913,95786.0,95783.0,0.413008]
[1736318665394,0.15754913,95789.0,95783.0,0.413008]
[1736318665592,0.15754913,95785.0,95783.0,0.413008]
[1736318665796,0.15754913,95788.0,95783.0,0.413008]
[1736318666093,0.15564102,95784.0,95783.0,0.413008]
[1736318666293,0.14895868,95787.0,95783.0,0.3608]
[1736318666499,0.15564102,95792.0,95784.0,0.3762]
[1736318666686,0.15564102,95792.0,95791.0,0.413004]
[1736318666887,0.15564102,95794.0,95793.0,0.052203]
[1736318667188,0.15605745,95815.0,95801.0,0.052198]
[1736318667392,0.15605745,95815.0,95805.0,0.46559828]
[1736318667594,0.36136001,95816.0,95805.0,0.46559828]
[1736318667789,0.15605745,95815.0,95805.0,0.46559828]
[1736318668794,0.15605745,95815.0,95805.0,0.46759828]
[1736318669097,0.15605745,95815.0,95806.0,0.052196]
[1736318669888,0.15605745,95815.0,95806.0,0.01011846]
[1736318670118,0.15605745,95815.0,95813.0,0.412992]
[1736318670494,0.05,95815.0,95813.0,0.412992]
[1736318670694,0.1556538,95814.0,95813.0,0.412992]
[1736318672003,0.1556538,95814.0,95813.0,0.3608]
[1736318672191,0.1586538,95814.0,95813.0,0.3608]
[1736318672394,0.1596538,95814.0,95813.0,0.3608]
[1736318673600,0.1596538,95814.0,95813.0,0.412992]
[1736318676100,0.12539187,95814.0,95813.0,0.412992]
[1736318676294,0.09339187,95814.0,95813.0,0.412992]
[1736318676489,0.07251187,95814.0,95813.0,0.412992]
[1736318676999,0.00156574,95834.0,95822.0,0.052187]
[1736318677200,0.00156574,95834.0,95832.0,0.3608]
[1736318677504,0.15604897,95833.0,95825.0,0.052186]
[1736318678398,0.15604897,95833.0,95832.0,0.001]
[1736318679809,0.13104897,95833.0,95832.0,0.6618]
[1736318680104,0.00060001,95870.0,95832.0,0.6618]
[1736318680296,0.5612,95879.0,95860.0,0.46559828]
[1736318680500,0.15640996,95869.0,95860.0,0.46559828]
[1736318680708,0.5,95878.0,95860.0,0.46559828]
[1736318680709,0.65640996,95878.0,95860.0,0.46559828]
[1736318681003,0.15712827,95868.0,95860.0,0.46559828]
[1736318681307,0.5,95878.0,95864.0,0.052164]
[1736318681507,0.15712827,95876.0,95864.0,0.052164]
[1736318681704,0.15712827,95867.0,95865.0,0.052164]
[1736318682010,0.15644476,95875.0,95865.0,0.052164]
[1736318682335,0.15644476,95866.0,95865.0,0.052164]
[1736318682698,0.15644476,95867.0,95866.0,0.052163]
[1736318683104,0.004,95868.0,95866.0,0.052163]
[1736318683409,0.15685555,95867.0,95866.0,0.052163]
[1736318683809,0.15685555,95867.0,95860.0,0.3608]
[1736318684001,0.5,95857.0,95848.0,0.052173]
[1736318684399,0.5,95851.0,95847.0,0.01022762]
[1736318684599,0.1985,95850.0,95848.0,0.052173]
[1736318684796,0.35575993,95850.0,95848.0,0.052173]
[1736318685002,0.5,95846.0,95840.0,0.00156499]
[1736318685201,0.547,95849.0,95840.0,0.00156499]
[1736318685404,0.155968,95845.0,95835.0,0.05218]
[1736318685610,0.5,95839.0,95835.0,0.05218]
[1736318685803,0.5,95839.0,95820.0,0.10479828]
[1736318685804,0.547,95849.0,95820.0,0.10479828]
[1736318685999,0.3608,95836.0,95819.0,0.052189]
[1736318686201,0.3608,95836.0,95818.0,0.37116501]
[1736318686515,0.5,95826.0,95824.0,0.052186]
[1736318686907,0.65753568,95825.0,95824.0,0.052186]
[1736318687315,0.3608,95825.0,95815.0,0.052191]
[1736318687614,0.5,95815.0,95814.0,0.00156533]
[1736318687907,0.65603426,95815.0,95814.0,0.00156533]
[1736318688114,0.15603426,95815.0,95814.0,0.00156533]
[1736318688514,0.5,95815.0,95806.0,0.052196]
[1736318688813,0.5,95815.0,95809.0,0.3608]
[1736318688814,0.15603426,95815.0,95809.0,0.3608]
[1736318689005,0.1925,95823.0,95809.0,0.3608]
[1736318689206,0.15617056,95822.0,95821.0,0.052188]
[1736318689416,0.1925,95823.0,95821.0,0.052188]